{"text_format":"1","workbook":"xlsx","n_sheets":1,"sheets":["conceptos"],"not_rendered":{"charts":0,"images":2,"macros":1,"external_links":0,"defined_names":1,"comments":0,"pivot_tables":0},"unopened":[],"bounds":{"document_bytes":16777216,"sheet_cells":100000,"rows_first":2000,"rows_last":500,"rows_between":2000,"halvings":0,"cell_chars":16384,"cell_head_chars":4096},"cells_cut":0,"cells_raw":0,"read":"whole","date_system":"1900"}

{"sheet":"conceptos","index":0,"n_rows":144,"n_cols":8,"rows_kept":144,"cut":false,"hidden":false,"merged":[[141,0,141,4],[142,0,143,4],[13,0,13,6],[0,2,0,5],[9,2,9,5],[1,2,3,5],[4,2,4,3],[6,2,6,3],[7,2,7,3],[4,4,4,5],[5,4,5,5],[6,4,6,5],[7,4,7,5],[10,2,10,5],[11,2,11,5],[5,1,8,1]]}
[null,"GOBIERNO DEL ESTADO DE JALISCO","LICITACIÓN PÚBLICA ESTATAL"]
[null,"INSTITUTO DE LA INFRAESTRUCTURA FÍSICA EDUCATIVA DEL","E-PART-B-CON-04891-LP-0091-2020"]
[null,"ESTADO DE JALISCO"]
[]
[null,"DESCRIPCIÓN GENERAL DE LOS TRABAJOS:","FECHA DE INICIO:"]
[null,null,null,"FECHA DE TERMINACIÓN:"]
[null,null,"PLAZO DE EJECUCIÓN:"]
[null,null,"FECHA:"]
[]
[null,"RAZÓN SOCIAL DEL LICITANTE:","NOMBRE, CARGO Y FIRMA DEL LICITANTE:",null,null,null,"DOCUMENTO"]
[]
[]
[]
["PRESUPUESTO DE OBRA"]
[]
["CLAVE","DESCRIPCIÓN","UNIDAD","CANTIDAD","PRECIO UNITARIO ($)","PRECIO UNITARIO ($) CON LETRA","IMPORTE ($) M.N."]
["TRABAJO : BAS-CON-04891","CONSTRUCCIÓN DE ESTRUCTURA CON LONARIA PARA LA PROTECCIÓN DE RAYOS UV Y REHABILITACIÓN GENERAL EN EL JARDÍN DE NIÑOS FRANCISCO MEDINA ASCENCIO CCT 14EJN0088C, UBICADO EN LA LOCALIDAD TLAQUEPAQUE, EN EL MUNICIPIO DE SAN PEDRO TLAQUEPAQUE, JALISCO.",null,null,null,null,{"$f":"TEXT(SUM(G18 + G73 + G105 + G111), \"$ #,##0.00 ;\")","v":"$ 0.00 "}]
["CNJ","CONJUNTO",null,null,null,null,{"$f":"TEXT(SUM(G19 + G34 + G37 + G41 + G45 + G49 + G53 + G55 + G58 + G60 + G69), \"$ #,##0.00 ;\")","v":"$ 0.00 "}]
["CNJ.01(140)","DEMOLICIONES, DESMONTAJES Y MECANICA DE SUELOS    ",null,null,null,null,{"$f":"TEXT(SUM(G20:G33), \"$ #,##0.00 ;\")","v":"$ 0.00 "}]
[140030,"RETIRO DE TEJA IMPERLAM SIN RECUPERACION, INCLUYE: DESMONTAJE DE CABALLETE DE CONCRETO,  ACARREO DENTRO Y FUERA DE LA OBRA DEL MATERIAL EN MAL ESTADO, MANO DE OBRA Y HERRAMIENTA.","M2 ","84.0000",0,"CERO PESOS 00/100 M.N.",0,230211]
[140049,"DEMOLICION DE ELEMENTOS DE CONCRETO SIMPLE A CUALQUIER NIVEL,  INCLUYE; HERRAMIENTA, EQUIPO NECESARIO, LIMPIEZA, MANO DE OBRA Y ACARREO DENTRO Y FUERA DE MATERIAL PRODUCTO DE DEMOLICION.\n","M3 ","6.5000",0,"CERO PESOS 00/100 M.N.",0,230212]
[140076,"DEMOLICION DE MURO DE LADRILLO DE LAMA Y/O BLOCK DE JALCRETO DE 14 CMS. DE ESPESOR A CUALQUIER NIVEL, INCLUYE:  DEMOLICION DE DALAS, CADENAS Y CASTILLOS,  DEMOLICION DE RECUBRMIENTOS, APLANADOS, AZULEJO,(PROTECCIONES DE PISOS, VIDRIOS, PUERTAS, VENTANAS, LAMPARAS Y DEMAS INSTALACIONES QUE PUDIERAN RESULTAR DAÑADAS EN EL PROCESO DE LA DEMOLICION.) HERRAMIENTAS, EQUIPO DE SEGURIDAD,  ANDAMIOS, MANO DE OBRA, RETIRO Y ACARREO DE MATERIALES DE DESHECHO DENTRO Y FUERA DE LA OBRA ATIRADERO AUTORIZADO Y LIMPIEZA DEL AREA DE LOS TRABAJOS.","M2 ","21.0000",0,"CERO PESOS 00/100 M.N.",0,230213]
[140078,"DEMOLICION DE AZULEJO A CUALQUIER NIVEL, INCLUYE:,(PROTECCIONES DE PISOS, VIDRIOS, PUERTAS, VENTANAS, LAMPARAS Y DEMAS INSTALACIONES QUE PUDIERAN RESULTAR DAÑADAS EN EL PROCESO DE LA DEMOLICION.) HERRAMIENTAS, EQUIPO DE SEGURIDAD,  ANDAMIOS, MANO DE OBRA, ACARREO DEL PRODUCTO DE LA DEMOLICION  DENTRO Y FUERA DE LA OBRA Y LIMPIEZA DEL AREA DE TRABAJO.","M2 ","165.0000",0,"CERO PESOS 00/100 M.N.",0,230214]
[140128,"DESCONEXION Y DESMONTAJE DE TINACO  EXISTENTE DE 1,100 LTS. DE CAPACIDAD. INCLUYE: ACARREO DENTRO Y FUERA DE LA OBRA, HERRAMIENTAS, EQUIPO DE SEGURIDAD Y MANO DE OBRA, A CUALQUIER ALTURA.\n","PZA","3.0000",0,"CERO PESOS 00/100 M.N.",0,230215]
[140129,"DESINSTALACION DE MUEBLE DE BAÑO YA SEA INODORO, LAVABO, MINGITORIO,  ETC. SIN RECUPERACION  INCLUYE:  DESCONEXION, HERRAMIENTAS, MANO DE OBRA, LIMPIEZA Y ACARREO DEL MUEBLE FUERA DE LA OBRA.","PZA","13.0000",0,"CERO PESOS 00/100 M.N.",0,230216]
[140152,"DESMONTAJE DE CANCELERIA  DE PERFIL TUBULAR  CON RECUPERACION DE LAS MISMAS. PARA SU POSTERIOR COLOCACION, INCLUYE: DEMOLICION DE ANCLAJES ACARREO Y RETIRO FUERA DE OBRA DE MATERIAL PRODUCTO DE LA DEMOLICION, HERRAMIENTAS, MANO DE OBRA CALIFICADA Y ACOMODO DE LOS ELEMENTOS DE HERRERIA AL LUGAR QUE SE INDIQUE EN OBRA.","M2 ","16.5000",0,"CERO PESOS 00/100 M.N.",0,230217]
[140176,"DEMOLICION DE HORMIGON, IMPERMEABILIZANTE Y  ENLADRILLADO DE AZOTEA EN CUBIERTAS CON UN ESPESOR TOTAL DE 13 CM PROMEDIO, INCLUYE: HERRAMIENTA, EQUIPO NECESARIO, MANO DE OBRA, LIMPIEZA, ACARREO  Y RETIRO DE MATERIAL PRODUCTO DE LA DEMOLICION FUERA DE LA OBRA.\n","M2 ","645.0000",0,"CERO PESOS 00/100 M.N.",0,230218]
[140199,"DESMONTAJE DE PUERTAS Y MAMPARAS CON MARCO Y CONTRA MARCOS DE HERRERIA TUBULAR Y/O DE ALUMINIO EXISTENTES EN OBRA, SIN RECUPERACION, TRASLADO Y GUARDADO EN BODEGA O LUGAR INDICADO POR SUPERVISION. INCLUYE; ANTEPECHO, DEMOLICION DE ANCLAJES, ACARREO Y RETIRO FUERA DE OBRA DE MATERIAL PRODUCTO DE LA DEMOLICION, MANO DE OBRA CALIFICADA Y LIMPIEZA DEL AREA DE TRABAJO.","M2 ","58.0000",0,"CERO PESOS 00/100 M.N.",0,230219]
[140232,"RANURA EN MUROS Y APLANADOS EN FORMA MANUAL PARA COLOCACION DE TUBERIA DE INSTALACIONES, DE DIFERENTES DIAMETROS,  INCLUYE: TRAZO DE RANURAS, HERRAMIENTAS, MANO DE OBRA, LIMPIEZA, RETIRO DE ESCOMBROS Y RESANES CON MORTERO DE CEMENTO-ARENA DE RIO EN PROPORCION 1:3.","ML ","30.0000",0,"CERO PESOS 00/100 M.N.",0,230220]
[140695,"DEMOLICION DE PISO DE LOSETA DE CERAMICA Y FIRME DE CONCRETO SIMPLE EXISTENTE. INC. CORTE CON DISCO PARA DELIMITAR AREA DE DEMOLICION; MANO DE OBRA, HERRAMIENTA, EQUIPO,  CARGA Y ACARREO INTERIOR Y FUERA DE LA OBRA DEL MATERIAL PRODUCTO DE LA DEMOLICION.","M2 ","325.0000",0,"CERO PESOS 00/100 M.N.",0,230221]
[140751,"DESMANTELAMIENTO Y RETIRO DE LINEAS HIDRAULICAS DE COBRE Y/O GALVANIZADO, EN DIFERENTES DIAMETROS,  INCLUYE: DESMONTAJE DE VALVULAS Y CONEXIONES, CORTES, DEMOLICIONES DE APLANADOS Y RECUBRIMIENTOS, EXCAVACIONES,  HERRAMIENTAS, LIMPIEZA, MANO DE OBRA, ACARREO DEL MATERIAL PRODUCTO DEL DESMANTELAMIENTO DENTRO Y FUERA DE LA OBRA.","ML ","125.0000",0,"CERO PESOS 00/100 M.N.",0,230222]
[140882,"DESINSTALACION DE SALIDA HIDRAULICA EXISTENTE INCLUYE. ACARREO DEL MATERIAL PROD. DEL DESMANTELAMIENTO DENTRO Y FUERA DE LA OBRA.","SAL","42.0000",0,"CERO PESOS 00/100 M.N.",0,230223]
[907176,"DEMOLICION DE PISO DE CONCRETO DE 0.08 A 0.10 CM DE ESPESOR, Y  5 A 15 CMS. DE ANCHO, INCLUYE: CORTE CON DISCO PARA DELIMITAR AREA DE DEMOLICION, EXCAVACION, RELLENO, COMPACTACION, REPOSICION DEL PISO DE CONCRETO, MANO DE OBRA, HERRAMIENTA, EQUIPO,  CARGA Y ACARREO INTERIOR Y FUERA DE LA OBRA DEL MATERIAL PRODUCTO DE LA DEMOLICION.","ML ","155.0000",0,"CERO PESOS 00/100 M.N.",0,230224]
["CNJ.02(150)","TRABAJOS PRELIMINARES                             ",null,null,null,null,{"$f":"TEXT(SUM(G35:G36), \"$ #,##0.00 ;\")","v":"$ 0.00 "}]
[152204,"EXCAVACION EN CEPAS POR CUALQUIER MEDIO, MATERIAL TIPO \"B\", DE 0 A 2.00 M. DE PROFUNDIDAD, EN SECO, INCLUYE: AFINE DE TALUDES Y FONDO, TRASPALEOS,  MOVIMIENTOS Y ACARREOS DENTRO DE LA OBRA, HERRAMIENTAS Y MANO DE OBRA, MEDIDO EN BANCO.","M3 ","16.0000",0,"CERO PESOS 00/100 M.N.",0,230225]
[156002,"CARGA POR CUALQUIER MEDIO Y ACARREO EN CAMION DE MATERIAL DE DESPERDICIO PRODUCTO DE LAS EXCAVACIONES FUERA DE LA OBRA, A LUGAR PERMITIDO POR LAS AUTORIDADES CORRESPONDIENTES, MEDIDO EN BANCO. INCLUYE CARGA,  ACARREO Y DESCARGA A TIRO LIBRE, HERRAMIENTA, EQUIPO, MATERIALES DE CONSUMO Y MANO DE OBRA.","M3 ","16.0000",0,"CERO PESOS 00/100 M.N.",0,230226]
["CNJ.03(310)","MUROS, CADENAS, CASTILLOS Y REPIZONES.            ",null,null,null,null,{"$f":"TEXT(SUM(G38:G40), \"$ #,##0.00 ;\")","v":"$ 0.00 "}]
[310210,"DALA DE CONCRETO F'C=250 KG/CM2, T.M.A.=3/4\", CON SECCION DE 14 X 20 CMS., ARMADA CON 4 VARILLAS DEL # 3 Y ESTRIBOS DEL NO. 2 @ 20 CMS., INCLUYE: ARMADO, COLADO, CURADO, VIBRADO, CIMBRA COMUN, DESCIMBRA, DESPERDICIOS, TRASLAPES, ESCUADRAS, CRUCE DE VARILLAS CON ELEMENTOS TRANSVERSALES, ANDAMIOS, MANO DE OBRA, HERRAMIENTA Y ACARREO DE MATERIALES AL SITIO DE SU UTILIZACION. A CUALQUIER ALTURA.","ML ","8.0000",0,"CERO PESOS 00/100 M.N.",0,230227]
[312207,"CASTILLO DE CONCRETO F´C= 150 KGS/CM2 CON UNA SECCION DE 15 X 15 CM., ARMADO CON 4 VARILLAS DEL #3, ESTRIBOS DEL #2@20 CM.  INCLUYE: ARMADO, COLADO, CURADO, VIBRADO, CIMBRA APARENTE, DESCIMBRA, TRASLAPES, CRUCES DE VARILLAS CON ELEMENTOS TRANSVERSALES, DESPERDICIOS, MANO DE OBRA, HERRAMIENTA Y ACARREO DE MATERIALES AL SITIO DE SU UTILIZACION, A CUALQUIER ALTURA.","ML ","6.0000",0,"CERO PESOS 00/100 M.N.",0,230228]
[314032,"MURO DE TABIQUE DE LAMA, DE 14 CMS. DE ESPESOR PROMEDIO, A SOGA, CON TABIQUE DE LAMA 7 X 14 X 28 CMS., ACABADO COMUN, ASENTADO CON MORTERO CEMENTO-ARENA EN PROPORCION 1:3, EN CUALQUIER NIVEL, INCLUYE: TRAZO, NIVELACION, PLOMEO, ANDAMIOS, DESPERDICIOS, MANO DE OBRA, LIMPIEZA Y ACARREO DE MATERIALES AL SITIO DE SU UTILIZACION.","M2 ","10.0000",0,"CERO PESOS 00/100 M.N.",0,230229]
["CNJ.04(319)","ENTREPISOS, CUBIERTA Y ACABADOS DE AZOTEA         ",null,null,null,null,{"$f":"TEXT(SUM(G42:G44), \"$ #,##0.00 ;\")","v":"$ 0.00 "}]
[322040,"ENTORTADO DE JALCRETO F´C= 100 KG/CM2, AGREGANDO IMPERMEABILIZANTE INTEGRAL A RAZON DE 1 KG/ 50 KG DE CEMENTODE, DE 10.0 CM DE ESPESOR PROMEDIO, PARA DAR PENDIENTES EN ENTREPISOS Y AZOTEAS, ACABADO  APALILLADO FINO EN FORMA INTEGRAL (SIN PASTA), PARA RECIBIR TEJA, IMPERMEABILIZANTE Y/O ENLADRILLADO,  INCLUYE: MATERIALES, NIVELACION,  ELEVACIONES, DESPERDICIOS, HERRAMIENTAS,  LIMPIEZA, MANO DE OBRA Y ACARREOS AL SITIO DE SU COLOCACION, EN CUALQUIER NIVEL.","M2 ","645.0000",0,"CERO PESOS 00/100 M.N.",0,230230]
[324012,"ENLADRILLADO DE AZOTEA CON LADRILLO DE BARRO ROJO RECOCIDO DE 17.0 X 17.0 CM, ASENTADO CON MORTERO CEMENTO-ARENA 1:3. INC.: LECHADA DE CEMENTO GRIS Y COLOR ROJO TERRACOTA CON IMPERMEABILIZANTE INTEGRAL (1 KG/SACO DE CEMENTO), REMATE ORILLERO (2 HILADAS) Y ACARREO DE MATERIALES AL SITIO DE SU COLOCACION.","M2 ","645.0000",0,"CERO PESOS 00/100 M.N.",0,230231]
[344125,"IMPERMEABILIZACION DE MUROS O LOSAS, A BASE DE MEMBRANA PREFABRICADA, MCA. IMPERQUIMIA, UNIPLAS AERO PLUS SBS, ALTO DESEMPEÑO CON VENTILACION ANTIABOLSAMIENTOS, FABRICADA A BASE DE ASFALTOS MODIFICADOS CON POLIMEROS SINTETICOS SBS (ESTIRENO BUTADIENO ESTIRENO) REFORZADA CON MALLA POLIESTER DE ALTA RESISTENCIA, ACABADO APARENTE A BASE DE GRAVILLA ESMALTADA A FUEGO, 4.5 MM  DE ESPESOR TOTAL, COLOR ROJO TERRACOTA, GARANTIA POR ESCRITO DE 10 AÑOS, POR LA EMPRESA CONTRATISTA., INCLUYE: LIMPIEZA Y PREPARACION DE LA SUPERFICIE, APLICACION DE PRIMER IMPERCOAT PRIMARIO SL, PARA ANCLAJE Y TAPAPORO DE LA SUPERFICIE, SELLADO DE FISURAS Y GRIETAS A BASE DE CEMENTO PLASTICO BITUMINOSO IMPERCOAT CEMENTO SBS, SUMINISTRO Y COLOCACION DE MEMBRANA POR MEDIO DE TERMOFUSION A BASE DE FUEGO DE SOPLETE DE GAS BUTANO, HACIENDO TRASLAPES MINIMOS DE 0.10 MTS. EN AMBOS SENTIDOS, SELLADO DE ORILLAS, REMATES Y TRASLAPES, MATERIALES MENORES Y DE CONSUMO, CORTES, DESPERDICIOS, LIMPIEZA GENERAL, HERRAMIENTAS, MANO DE OBRA ESPECIALIZADA Y ACARREOS AL SITIO DE SU COLOCACION.","M2 ","645.0000",0,"CERO PESOS 00/100 M.N.",0,230232]
["CNJ.05(355)","RECUBRIMIENTOS Y ACABADOS                         ",null,null,null,null,{"$f":"TEXT(SUM(G46:G48), \"$ #,##0.00 ;\")","v":"$ 0.00 "}]
[355025,"APLANADO DE MORTERO CEMENTO-ARENA 1:3 DE 3.0 CM DE ESPESOR, A PLOMO Y REGLA, ACABADO TERMINADO PULIDO O APALILLADO, INCLUYE: MATERIALES, ANDAMIOS, REMATES, FILETES, HERRAMIENTAS, LIMPIEZA, MANO DE OBRA Y ACARREO DE MATERIALES AL SITIO DE SU UTILIZACION. A CUALQUIER NIVEL.","M2 ","126.0000",0,"CERO PESOS 00/100 M.N.",0,230233]
[357322,"BOQUILLAS EN PUERTAS Y VENTANAS, CON MORTERO CEMENTO-CAL-ARENA 1:2:6, INCLUYE: ANDAMIOS Y ACARREO DE MATERIALES AL SITIO DE SU UTILIZACION.","ML ","25.0000",0,"CERO PESOS 00/100 M.N.",0,230234]
[358015,"SUMINISTRO Y COLOCACION DE LOSETA CERAMICA PARA MURO ( AZULEJO ), CON RECUBRIMIENTO ESMALTADO, DE 20 X 30 CM., MCA.  INTERCERAMIC, LINEA BOULDER, CUALQUIER COLOR, DE PRIMERA CALIDAD, ASENTADO CON PEGAZULEJO Y JUNTEDO CON JUNTEADOR DE COLOR,  JUNTAS A HUESO, INCLUYE: TRAZO, CORTE, REMATES, ESCUADRE, DESPERDICIOS, DESPATINADO, EMBOQUILLADOS, CERTIFICADO DE CALIDAD, HERRAMIENTAS, MATERIALES,  MANO DE OBRA, LIMPIEZA Y ACARREO DE MATERIALES AL SITIO DE SU UTILIZACION, A CUALQUIER NIVEL.","M2 ","105.0000",0,"CERO PESOS 00/100 M.N.",0,230235]
["CNJ.06(372)","PISOS                                             ",null,null,null,null,{"$f":"TEXT(SUM(G50:G52), \"$ #,##0.00 ;\")","v":"$ 0.00 "}]
[372242,"FIRME DE CONCRETO F´C= 150 KG/CM2 TMA= 3/4\",  DE 8 CM DE ESPESOR, ACABADO APALILLADO. INCLUYE: TRAZO, NIVELACION, AFINE Y COMPACTACION DEL TERRENO, AGUA, MATERIALES, EXTENDIDO, REGLEADO, CURADO, DESPERDICIOS, HERRAMIENTAS, LIMPIEZA, MANO DE OBRA Y ACARREO DEL MATERIAL AL SITIO DE SU UTILIZACION","M2 ","325.0000",0,"CERO PESOS 00/100 M.N.",0,230236]
[373026,"PISO DE CONCRETO HECHO EN OBRA F'C=200 KG/CM2, TMA 3/4\", DE 10 CMS. DE ESPESOR, ACABADO RAYADO CON BROCHA, EN FORMA INTERGRAL, SIN UTILIZACION DE PASTA, COLADO A CUADROS, CON REFUERZO DE MALLA ELECTROSOLDADA 6-6 / 10-10, INCLUYE: TRAZO, NIVELACION, AFINE Y COMPACTACION DEL TERRENO, MATERIALES, CIMBRA DE FRONTERA, DESCIMBRA, DESPERDICIOS, CURADO, VIBRADO, MUESTREADO, JUNTAS FRIAS, VOLTEADOR,  HERRAMIENTAS, MANO DE OBRA Y ACARREOS DE MATERIALES AL SITIO DE SU UTILIZACION.","M2 ","45.0000",0,"CERO PESOS 00/100 M.N.",0,230237]
[376046,"SUMINISTRO Y COLOCACION DE PISO DE  LOSETA CERAMICA DE 30 X 30 CM., 33 X 33 CM., PRENSADO EN SECO, CON RECUBRIMIENTO ESMALTADO DE COLOR, QUEMADO A MONOCOCCION A TEMPERATURAS DE 1,150 A 1200 °C,  CALIDAD DE PRIMERA, QUE DEBERA CUMPLIR CON LAS SIGUIENTES CARACTERISTICAS TECNICAS: ABSORCION <= 3% , COEFICIENTE DE ESTATICO DE FRICCION >= 0.5, MODULO DE RUPTURA >= 300 KG/CM², PEI, RESISTENCIA A LA ABRASION VISIBLE 1500 CICLOS (PEI IV), RESISTENTE AL MANCHADO, RESISTENCIA AL RAYADO >= 5.0 MOHS, RESISTENTE A LOS QUIMICOS. ASENTADO CON PEGAPISO Y JUNTEDO CON JUNTEADOR DE COLOR,  JUNTAS DE 4 MM. DE ANCHO, MINIMO,  INCLUYE: TRAZO, CORTE, REMATES, ESCUADRE, DESPERDICIOS, DESPATINADO, EMBOQUILLADOS, CERTIFICADO DE CALIDAD, HERRAMIENTAS, MATERIALES,  MANO DE OBRA, LIMPIEZA  Y ACARREO DE MATERIALES AL SITIO DE SU UTILIZACION, A CUALQUIER NIVEL.","M2 ","325.0000",0,"CERO PESOS 00/100 M.N.",0,230238]
["CNJ.07(382)","ELEMENTOS COMPLEMENTARIOS DE ALBAÑILERIA          ",null,null,null,null,{"$f":"TEXT(SUM(G54:G54), \"$ #,##0.00 ;\")","v":"$ 0.00 "}]
[382012,"LOSA DE CONCRETO F'C=200 KG/CM2 DE 10 CM DE ESP. Y 60 CM DE ANCHO, PARA RECIBIR LAVABO U OVALIN, ARMADA CON VARILLA #3 (3/8\") A CADA 30 CM, EN AMBOS SENTIDOS. INCLUYE: CIMBRA COMUN Y DESCIMBRA, RECUBRIMIENTO DE AZULEJO LISO, DESPERDICIOS, DESPATILLADO, REMATES, EMBOQUILLADO Y ACARREO DE MATERIAL AL SITIO DE SU UTILIZACION, A CUALQUIER NIVEL.","ML ","5.0000",0,"CERO PESOS 00/100 M.N.",0,230239]
["CNJ.08(393)","PINTURA                                           ",null,null,null,null,{"$f":"TEXT(SUM(G56:G57), \"$ #,##0.00 ;\")","v":"$ 0.00 "}]
[393021,"PINTURA VINIL-ACRÍLICA A BASE DE AGUA ACABADO SEMIMATE  LAVABLE, PARA INTERIORES Y EXTERIORES QUE NO DESPRENDA VAPORES TÓXICOS NI OLORES DESAGRADABLES, CON LAS SIGUIENTES CARACTERÍSTICAS ( SÓLIDOS POR PESO 46-52%, SÓLIDOS POR VOLUMEN 30-36%, VISCOSIDAD DE 100-130 UK A 25°C, DENSIDAD > O = 1.2 TON/M3., LAVABILIDAD > O = 4,000 CICLOS, TIEMPO DE SECADO AL TACTO, 30-40 MIN., TIEMPO DE SECADO DURO < O = 8 HRS., CICLO DE CURADO DE 7 DIAS, PH 6-8, RENDIMIENTO EN SUP. LISA 8-10 M2/LT., FINEZA DE MOLIDO (HEGMAN) 3-7 UH.), EN MUROS DE LADRILLO ACABADO APARENTE, A DOS MANOS, TRABAJO TERMINADO, INCLUYE: MATERIALES MENORES Y DE CONSUMO, PREPARACION DE LA SUPERFICIE, HERRAMIENTAS, LIMPIEZA,  ANDAMIOS A CUALQUIER NIVEL, MANO DE OBRA,  Y EQUIPO DE SEGURIDAD.","M2 ","205.0000",0,"CERO PESOS 00/100 M.N.",0,230240]
[393122,"PINTURA DE ESMALTE ALQUIDALICO ANTICORROSIVO, ACABADO BRILLANTE, PARA INTERIORES Y EXTERIORES QUE NO DESPRENDA VAPORES TÓXICOS NI OLORES DESAGRADABLES, CON LAS SIGUIENTES CARACTERÍSTICAS ( SÓLIDOS POR PESO 49-60%, SÓLIDOS POR VOLUMEN 40-46%, VISCOSIDAD DE 110-160 UK A 25°C, DENSIDAD 0.9-1.2 TON/M3., BRILLO A 60°C, 90%, TIEMPO DE SECADO AL TACTO, < O = 6 HRS., TIEMPO DE SECADO DURO < O = 24 HRS., ADHERENCIA 100%, RENDIMIENTO EN SUP. LISA 8-10 M2/LT., DILUCIÓN MÁXIMA (AGUARRÁS, THINER), 15 %,  EN HERRERIA CERRADA (DUELA DE LAMINA ACANALADA), TRABAJO TERMINADO, A DOS MANOS, INCLUYE: MATERIALES MENORES Y DE CONSUMO, ANDAMIOS, PREPARACION DE LA SUPERFICIE, HERRAMIENTAS, LIMPIEZA, MANO DE OBRA Y  EQUIPO DE SEGURIDAD. A CUALQUIER NIVEL.","M2 ","15.0000",0,"CERO PESOS 00/100 M.N.",0,230241]
["CNJ.09(410)","CANCELERIA, HERRERIA, ALUMINIO, VIDRIOS Y CHAPAS  ",null,null,null,null,{"$f":"TEXT(SUM(G59:G59), \"$ #,##0.00 ;\")","v":"$ 0.00 "}]
[907361,"SUMINISTRO Y COLOCACION DE PUERTAS Y/O  MAMPARAS MCA.  MODUMEX O SIMILAR, LINEA LEEDER,  MODELO ESTANDAR, FABRICADAS CON CAPAS DE FIBRA CELULOSA, PAPEL DECORATIVO Y RESINAS,  BAJO UN PROCESO DE LAMINADO PLASTICO DE ALTA PRESION, CON UN ESPESOR TOTAL DE 12.7 MM. , CON ACABADO ANTI GRAFFITI,  EN COLOR INDICADO EN OBRA POR LA SUPERVISION,  INCLUYE: HERRAJES, PASADORES CON AVISO DE VACANTE Y OCUPADO, BISAGRAS, TOPES, JALADERAS, SOPORTES INFERIORES PARA PILASTRA REDONDOS DE ACERO INOXIDABLE CAL. 12 Y CAPUCHON DE NYLON,  DESPERDICIOS, AJUSTES,  MATERIALES DE FIJACION, MANO DE OBRA ESPECIALIZADA, HERRAMIENTAS, MANO DE OBRA, LIMPIEZA Y ACARREO DE MATERIALES AL SITIO DE SU UTILIZACION. (AREA EFECTIVA DE LA MAMPARA)","M2 ","55.0000",0,"CERO PESOS 00/100 M.N.",0,230242]
["CNJ.10(564)","INSTALACION HIDRAULICA, SANITARIA Y GAS EN EDIF.  ",null,null,null,null,{"$f":"TEXT(SUM(G61:G68), \"$ #,##0.00 ;\")","v":"$ 0.00 "}]
[570615,"SALIDA HIDRAULICA DE AGUA FRIA Y/O CALIENTE, PARA ALIMENTACION A MUEBLE SANITARIO, CONSISTENTE EN TUBERIA Y CONEXIONES DE CPVC DE 1/2\" A 1 1/2\" DE DIAMETRO, INCLUYE: TRAZO, RANURAS, CAMARAS CONTRA GOLPE DE ARIETE, CONEXIONES, ( COPLES, CODOS, TAPONES, TEES, YEES, REDUCCIONES, ETC),  VALVULAS, TUERCAS UNION EN CUADROS DE VALVULAS, MATERIALES MENORES Y DE CONSUMO, PEGAMENTOS, ELEMENTOS DE FIJACION, DESPERDICIOS,  HERRAMIENTAS, LIMPIEZA, MANO DE OBRA, PRUEBAS HIDROSTATICAS, FLETES Y ACARREO DE LOS MATERIALES AL SITIO DE SU INSTALACION. (EN CUALQUIER NIVEL)","SAL","18.0000",0,"CERO PESOS 00/100 M.N.",0,230243]
[571102,"SALIDA SANITARIA A MUEBLE, CONSISTENTE EN TUBERIA Y CONEXIONES DE PVC DE 2\" Y 4\" DE DIAMETRO, INCLUYE: DESPERDICIO DE TUBERIA, LINEA DE VENTILACION (DESFOGUE),  COPLES, CODOS, TEES, YEES, REDUCCIONES, REGISTRO SANITARIO, MATERIALES MENORES, FLETES Y ACARREO DE LOS MATERIALES AL SITIO DE SU INSTALACION Y PRUEBAS.\n","SAL","20.0000",0,"CERO PESOS 00/100 M.N.",0,230244]
[579005,"SUCCION Y DESCARGA DE BOMBA, DESDE EL FONDO DE LA CISTERNA (PICHANCHA) HASTA LA DESCARGA EN EL FLOTADOR DEL TINACO EN EDIFICIO DE TRES NIVELES,  INCLUYE: TUBERIA DE COBRE TIPO \"M\" DE 25 MM. Y 32 MM. DE DIAMETRO, CONEXIONES, VALVULAS,  BY PASS, PICHANCHA, MATERIALES MENORES Y DE CONSUMO, DESPERDICIOS, PRUEBAS, HERRAMIENTAS, MANO DE OBRA ESPECIALIZADA Y ACARREO DE MATERIALES AL SITIO DE SU COLOCACION.","PZA","1.0000",0,"CERO PESOS 00/100 M.N.",0,230245]
[579132,"INTERCONEXION Y DESCARGA PARA 3 TINACOS CON TUBERIA Y CONEXIONES DE COBRE TIPO \"M\". INCLUYE: VALVULAS, DESPERDICIO, MATERIALES MENORES, PRUEBAS Y  ACARREO DE MATERIALES AL SITIO DE SU COLOCACION.","PDA","1.0000",0,"CERO PESOS 00/100 M.N.",0,230246]
[585101,"SUMINISTRO E INSTALACION DE BAJANTES PLUVIALES  DE PVC DE 3\" OCULTO EN MURO DE LADRILLO DE LAMA O BLOCK DE JALCRETO Y RECIBIDO CON CONCRETO F´C= 150 KG/CM2, EN UNA SECCION TOTAL DE 17 CM. X ANCHO DE MURO,  INCLUYE: MANO DE OBRA, MATERIAL MENORES Y DE CONSUMO, HERRAMIENTA, CONEXIONES, PEGAMENTO, FIJACION, RANURACION Y/O PREPARACION EN MUROS, LIMPIEZA DEL AREA DE TRABAJO, MANO DE OBRA Y ACARREOS DE MATERIALES AL SITIO DE SU COLOCACION. A CUALQUIER ALTURA","ML ","35.0000",0,"CERO PESOS 00/100 M.N.",0,230247]
[590522,"SUMINISTRO, ELEVACION Y COLOCACION DE TINACO PREFABRICADO LIGERO DE 1100 LTS DE CAP., (REDONDO) FABRICADO CON PLASTICO DE ALTA RESISTENCIA A RAYOS SOLARES, CLIMAS EXTREMOS E INTEMPERISMO, MOLDEADO, DE DOS CAPAS, INCLUYE: FLETES, MATERIALES MENORES, CONEXIONES, PRUEBAS, GARANTÍAS, NIVELACION, HERRAMIENTAS, LIMPIEZA, TAPA ROSCADA Y MANO DE OBRA. CUALQUIER ALTURA.","PZA","2.0000",0,"CERO PESOS 00/100 M.N.",0,230248]
[907172,"PERFORACION Y RESANE DE MUROS Y/O TECHOS PARA PASO DE TUBERIA DE 1/2\" A 2 1/2\" DE DIAMETRO, CON MORTERO CEMENTO-ARENA DE RIO EN PROP. 1:4,, CON ACABADO IGUAL AL EXISTENTE,  INCLUYE: TRAZO, HERRAMIENTAS, MATERIALES,  MANO DE OBRA, RETIRO Y ACARREO DE MATERIALES DE DESHECHO DENTRO Y FUERA DE LA OBRA ATIRADERO AUTORIZADO Y LIMPIEZA DEL AREA DE LOS TRABAJOS.","PZA","25.0000",0,"CERO PESOS 00/100 M.N.",0,230249]
[976424,"MOTOBOMBA SUMERGIBLE  0.5 H.P. MCA. EVANS MOD. SD410ME050F3,  INCLUYE: CARGA, FLETE AL LUGAR DE LA OBRA, DESCARGA, MANIOBRAS LOCALES, EL EQUIPO, LA HERRAMIENTA Y LA MANO DE OBRA NECESARIA PARA SU INSTALACION.","PZA","1.0000",0,"CERO PESOS 00/100 M.N.",0,230250]
["CNJ.11(590)","MUEBLES DE BAÑO Y COCINA                          ",null,null,null,null,{"$f":"TEXT(SUM(G70:G72), \"$ #,##0.00 ;\")","v":"$ 0.00 "}]
[590006,"SUMINISTRO E INSTALACION DE INODORO CON TANQUE BAJO, MODELO CADET PRO RH EL, COLOR BLANCO, MARCA AMERICAN STANDARD O SIMILAR, INCLUYE: ASIENTO DE PLASTICO, LLAVE ANGULAR FIG. 401, MANGUERA FLEXIBLE COFLEX, TANQUE, ACCESORIOS DE BRONCE PARA EL TANQUE BAJO, MATERIALES MENORES Y DE CONSUMO, ELEMENTOS DE FIJACION, LIMPIEZA, CUELLO DE CERA CON GUIA, PRUEBAS, HERRAMIENTAS, MANO DE OBRA Y ACARREO DE MATERIALES AL SITIO DE SU COLOCACION.","PZA","10.0000",0,"CERO PESOS 00/100 M.N.",0,230251]
[590114,"SUMINISTRO Y COLOCACION DE MINGITORIO DE COLOR, MCA. AMERICAN STANDARD MOD. NIAGARA O SIMILAR. INCLUYE LLAVE DE CAMPANA FIG. 17 MG MCA. URREA, MATERIALES MENORES, PRUEBAS Y ACARREO DE MATERIALES AL SITIO DE SU COLOCACION.","PZA","4.0000",0,"CERO PESOS 00/100 M.N.",0,230252]
[590265,"SUMINISTRO Y COLOCACION DE OVALIN DE SOBREPONER, MCA. AMERICAN STANDAR, MOD. CADET UNIVERSAL MONOMANDO, INCLUYE: LLAVES ANGULARES FIG. 401, CESPOL CROMADO MCA. URREA FIG. 207, LLAVE ECONOMIZADORA DE CIERRE AUTOMATICO MARCA HELVEX FIG. TV-120, MANGUERA COFLEX, DESPERDICIOS, MATERIALES MENORES Y DE CONSUMO, ELEMENTOS DE FIJACION, MANO DE OBRA, HERRAMIENTA, LIMPIEZA, EQUIPO, PRUEBAS Y ACARREO DE MATERIALES AL SITIO DE SU COLOCACION.","PZA","6.0000",0,"CERO PESOS 00/100 M.N.",0,230253]
[82,"CUBIERTA PARA PATIO CIVICO",null,null,null,null,{"$f":"TEXT(SUM(G74 + G76 + G80 + G90 + G95 + G97 + G99 + G103), \"$ #,##0.00 ;\")","v":"$ 0.00 "}]
["82.01(140)","DEMOLICIONES, DESMONTAJES Y MECANICA DE SUELOS    ",null,null,null,null,{"$f":"TEXT(SUM(G75:G75), \"$ #,##0.00 ;\")","v":"$ 0.00 "}]
[140602,"DEMOLICION DE FIRME Y/O PISO DE CONCRETO DE 10 CM DE ESPESOR PROMEDIO, EN SECCIONES OBLIGADAS, INC. CORTE CON DISCO PARA DELIMITAR AREA DE DEMOLICION; MANO DE OBRA, HERRAMIENTA, EQUIPO,  CARGA Y ACARREO INTERIOR Y FUERA DE LA OBRA DEL MATERIAL PRODUCTO DE LA DEMOLICION.","M2 ","13.5000",0,"CERO PESOS 00/100 M.N.",0,230254]
["82.02(150)","TRABAJOS PRELIMINARES                             ",null,null,null,null,{"$f":"TEXT(SUM(G77:G79), \"$ #,##0.00 ;\")","v":"$ 0.00 "}]
[150120,"TRAZO Y NIVELACION DE EXTERIORES ESTABLECIENDO REFERENCIAS DEFINITIVAS, CON TRANSITO Y NIVEL (EQUIPO TOPOGRAFICO), INCLUYE: PERSONAL TECNICO CALIFICADO, ESTACAS, MOJONERAS, LOCALIZACION DE EJES Y/O ENTRE EJES, BANCOS DE NIVEL, MATERIALES PARA SEÑALAMIENTO, EQUIPO, HERRAMIENTA Y MANO DE OBRA.","M2 ","246.6000",0,"CERO PESOS 00/100 M.N.",0,230255]
[152044,"EXCAVACION EN CEPAS POR MEDIOS MANUALES EN MATERIAL TIPO \"B\", DE 0 A 2.00 M. DE PROFUNDIDAD, EN SECO, INCLUYE: AFINE DE TALUDES Y FONDO, TRASPALEOS,  MOVIMIENTOS Y ACARREOS DENTRO DE LA OBRA, HERRAMIENTAS Y MANO DE OBRA, MEDIDO EN BANCO.","M3 ","22.9500",0,"CERO PESOS 00/100 M.N.",0,230256]
[156002,"CARGA POR CUALQUIER MEDIO Y ACARREO EN CAMION DE MATERIAL DE DESPERDICIO PRODUCTO DE LAS EXCAVACIONES FUERA DE LA OBRA, A LUGAR PERMITIDO POR LAS AUTORIDADES CORRESPONDIENTES, MEDIDO EN BANCO. INCLUYE CARGA,  ACARREO Y DESCARGA A TIRO LIBRE, HERRAMIENTA, EQUIPO, MATERIALES DE CONSUMO Y MANO DE OBRA.","M3 ","3.6000",0,"CERO PESOS 00/100 M.N.",0,230257]
["82.03(160)","CIMENTACION                                       ",null,null,null,null,{"$f":"TEXT(SUM(G81:G89), \"$ #,##0.00 ;\")","v":"$ 0.00 "}]
[160092,"PLANTILLA DE RELLENO DE EMBECO NO. 636, DE 5.0 CM DE ESPESOR PROMEDIO, PARA RECIBIR PLACA BASE DE COLUMNAS DE ESTRUCTURA METALICAS, INCLUYE: PREPARACION, CIMBRA, DECIMBRADO, MATERIALES, DESPERDICIOS, HERRAMIENTAS, LIMPIEZAS Y MANO DE OBRA.","M2 ","1.2000",0,"CERO PESOS 00/100 M.N.",0,230258]
[160222,"PLANTILLA DE CONCRETO F'C=100 KG/CM2, TMA=3/4\", DE 5.00 CM DE ESPESOR PROMEDIO. INCLUYE: MATERIALES, HERRAMIENTAS, AFINE, NIVELACION, LIMPIEZA, MANO DE OBRA Y ACARREO DE MATERIALES AL SITIO DE SU UTILIZACION.","M2 ","13.5000",0,"CERO PESOS 00/100 M.N.",0,230259]
[170012,"CIMBRA  ACABADO COMUN, EN CIMENTACION, INCLUYE: DESPERDICIO, HABILITADO, CIMBRADO Y DESCIMBRA, NIVELACION, PLOMEO MATERIAL, MANO DE OBRA , LIMPIEZA, HERRAMIENTA, ACARREO DEL MATRIAL DENTRO Y FUERA DE LA OBRA.","M2 ","17.4000",0,"CERO PESOS 00/100 M.N.",0,230260]
[173003,"SUMINISTRO, HABILITADO, ARMADO Y COLOCACION DE ACERO DE REFUERZO FY=4,200 KG/CM2 (G.E.), DE 3/8\" ( #3 ), EN CIMENTACION, INCLUYE: MATERIALES, HABILITADO,  DOBLECES,  SILLETAS, ALAMBRE, GANCHOS, ESCUADRAS, TRASLAPES, DESPERDICIOS HERRAMIENTAS, MANO DE OBRA Y ACARREO DE MATERIALES AL SITIO DE SU COLOCACION.","KG ","147.0000",0,"CERO PESOS 00/100 M.N.",0,230261]
[173004,"SUMINISTRO, HABILITADO, ARMADO Y COLOCACION DE ACERO DE REFUERZO FY=4,200 KG/CM2 (G.E.), DE 1/2\" ( #4 ), EN CIMENTACION, INCLUYE: MATERIALES, HABILITADO,  DOBLECES,  SILLETAS, ALAMBRE, GANCHOS, ESCUADRAS, TRASLAPES, DESPERDICIOS HERRAMIENTAS, MANO DE OBRA Y ACARREO DE MATERIALES AL SITIO DE SU COLOCACION.","KG ","69.0000",0,"CERO PESOS 00/100 M.N.",0,230262]
[173008,"SUMINISTRO, HABILITADO, ARMADO Y COLOCACION DE ACERO DE REFUERZO FY=4,200 KG/CM2 (G.E.), DE 1\" (#8 ), EN CIMENTACION, INCLUYE: MATERIALES, HABILITADO,  DOBLECES,  SILLETAS, ALAMBRE, GANCHOS, ESCUADERAS, TRASLAPES, DESPERDICIOS HERRAMIENTAS, MANO DE OBRA Y ACARREO DE MATERIALES AL SITIO DE SU COLOCACION.","KG ","309.0000",0,"CERO PESOS 00/100 M.N.",0,230263]
[176008,"SUMINISTRO Y COLOCACION DE CONCRETO HECHO EN OBRA F'C=250 KG/CM2, TMA= 3/4\", R.N. EN CIMENTACION. INCLUYE: TENDIDO, RASTREADO, VIBRADO, NIVELACION, HERRAMIENTAS, LIMPIEZA, PRUEBAS,  CURADO CON CURACRETO ROJO,  DESPERDICIO Y MANO DE OBRA.","M3 ","3.6000",0,"CERO PESOS 00/100 M.N.",0,230264]
[180003,"RELLENO COMPACTADO AL 95% PROCTOR, CON MATERIAL PRODUCTO DE EXCAVACION, EN CAPAS DE 15 CM DE ESPESOR, AGREGANDO AGUA PARA LOGRAR SU HUMEDAD OPTIMA, POR CUALQUIER MEDIO, MEDIDO COMPACTO. INCLUYE: SUMINISTRO DE AGUA PARA LOGRAR HUMEDAD OPTIMA,  TENDIDO, TRASPALEOS, EQUIPO, PRUEBAS DE COMPACTACION, AFINE, NIVELACION, HERRAMIENTAS, MANO DE OBRA Y  ACARREO HASTA EL SITIO DE SU COLOCACION. (MEDIDO EN BANCO).","M3 ","19.3500",0,"CERO PESOS 00/100 M.N.",0,230265]
[192324,"FABRICACION, SUMINISTRO Y COLOCACION DE JUEGO DE ANCLAS EN \"L\" DE REDONDO LISO (COLD ROLLED) CON 4 VARILLAS DE 1\" (#8), DE 70 CM DE DESARROLLO TOTAL (CADA ANCLA), CON 10 CM. DE ROSCA EN EXTREMO SUPERIOR, UNIDAS CON 2 ANILLETAS DE DE VARILLA CORRUGADA DE 3/8\" Y ALINEADAS A LA PLACA EN LA BASE DE COLUMNA. INCLUYE: CORTES, ROSCADO, DESPERDICIOS, ALINEACION, NIVELACION, PLOMEO, SOLDADURA, DOBLECES, TUERCAS, RONDANAS,  MANO DE OBRA, EQUIPO, HERRAMIENTA Y ACARREOS.","JGO","6.0000",0,"CERO PESOS 00/100 M.N.",0,230266]
["82.04(200)","ESTRUCTURA                                        ",null,null,null,null,{"$f":"TEXT(SUM(G91:G94), \"$ #,##0.00 ;\")","v":"$ 0.00 "}]
[280090,"SUMINISTRO, HABILITADO Y MONTAJE DE ESTRUCTURA METALICA DE ACERO ASTMA-36 F'Y=2530 KG/CM2, SOLDADOS Y/O ATORNILLADOS, (PERFILES IPR. IPS, CPS, REDONDOS SOLIDO, SOLERAS Y PLACAS, ETC, DIFERENTES DIMENSIONES Y CALIBRES,) PARA COLUMNAS, ARMADURAS, TRABES Y VIGAS, INCLUYE: MATERIALES MENORES Y DE CONSUMO, TRAZO, CORTES, AJUSTES, DESPERDICIOS, ENDEREZADO, BISELADO, DESCALIBRES, BARRENOS, TORQUES, SOLDADURA, UNA PRUEBA RADIOGRAFICA Y/O LIQUIDOS PENETRANTES POR CADA 500 KG. DE ACERO, FLETES, PINTURA ANTICORROSIVA, MANO DE OBRA CALIFICADA, HERRAMIENTA, EQUIPO, FLETES, ELEVACIONES, ACARREOS DE MATERIALES AL SITIO DE SU COLOCACION, ACUALQUIER ALTURA.","KG ","298.0000",0,"CERO PESOS 00/100 M.N.",0,230267]
[280095,"SUMINISTRO, HABILITADO Y MONTAJE DE ESTRUCTURA METALICA DE ACERO, ASTM A-500 GR-B, F'Y=3200 KG/CM2, SOLDADOS Y/O ATORNILLADOS, (OR, OC, TUBOS REDONDOS, PTR, ETC, DIFERENTES DIMENSIONES Y CALIBRES,) PARA COLUMNAS, ARMADURAS, TRABES Y VIGAS, INCLUYE: MATERIALES MENORES Y DE CONSUMO, TRAZO, CORTES, AJUSTES, DESPERDICIOS, ENDEREZADO, BISELADO, DESCALIBRES, BARRENOS, TORQUES, SOLDADURA, UNA PRUEBA RADIOGRAFICA Y/O LIQUIDOS PENETRANTES POR CADA 500 KG. DE ACERO, FLETES, PINTURA ANTICORROSIVA, MANO DE OBRA CALIFICADA, HERRAMIENTA, ANDAMIOS, EQUIPO, FLETES, ELEVACIONES, ACARREOS DE MATERIALES AL SITIO DE SU COLOCACION, A CUALQUIER ALTURA.","KG ","1,890.0000",0,"CERO PESOS 00/100 M.N.",0,230268]
[280096,"SUMINISTRO, HABILITADO, ROLADO Y MONTAJE DE ESTRUCTURA METALICA DE ACERO, ASTM A-500 GR-B, F'Y=3200 KG/CM2, SOLDADOS Y/O ATORNILLADOS, (OR, OC, TUBOS REDONDOS, PTR, ETC, DIFERENTES DIMENSIONES Y CALIBRES,) PARA COLUMNAS, ARMADURAS, TRABES Y VIGAS, INCLUYE: MATERIALES MENORES Y DE CONSUMO, TRAZO, CORTES, AJUSTES, DESPERDICIOS, ENDEREZADO, ROLADO, BISELADO, DESCALIBRES, BARRENOS, TORQUES, SOLDADURA, UNA PRUEBA RADIOGRAFICA Y/O LIQUIDOS PENETRANTES POR CADA 500 KG. DE ACERO, FLETES, PINTURA ANTICORROSIVA, MANO DE OBRA CALIFICADA, HERRAMIENTA, ANDAMIOS, EQUIPO, FLETES, ELEVACIONES, ACARREOS DE MATERIALES AL SITIO DE SU COLOCACION, A CUALQUIER ALTURA.","KG ","1,800.0000",0,"CERO PESOS 00/100 M.N.",0,230269]
[280202,"SUMINISTRO, HABILITADO  Y COLOCACION TENSORES, CRUCETAS Y/O TIRANTES DE REDONDO LISO (COLD ROLLED) DE ACERO DE BAJO CARBÓN ASTM A-108 DE ½\" A 1\" DE DIAMETRO, INCLUYE: TRAZO, CORTES, AJUSTES, BARRENOS, DESPERDICOS, DESCALIBRES, SOLDADURA DE PENETRACION, PRUEBAS RADIOGRAFICAS Y/O LIQUIDOS PENETRANTES, ROSCADO, TUERCAS, RONDANAS, TENSADO, TORQUES, FLETES, HERRAMIENTAS, ANDAMIOS, EQUIPO, PINTURA ANTICORROSIVA, MANO DE OBRA Y ACARREOS AL SITIO DE SU COLOCACION. A CUALQUIER ALTURA.","KG ","198.0000",0,"CERO PESOS 00/100 M.N.",0,230270]
["82.05(319)","ENTREPISOS, CUBIERTA Y ACABADOS DE AZOTEA         ",null,null,null,null,{"$f":"TEXT(SUM(G96:G96), \"$ #,##0.00 ;\")","v":"$ 0.00 "}]
[906752,"SUMINISTRO E INSTALACION DE MEMBRANA ARQUITECTONICA BLACK OUT PVC/PVDF, PESO 850 G/M2, TIPO I RESISTENCIA A LA RUPTURA: 3000 N/5CM, RESISTENCIA AL RASGADO 300 N, ADHESIÓN DE 100 A 120 N/5CM, AUTO-EXTINGUIBLE O TRATAMIENTO AL FUEGO, TRANSMITANCIA UV<0.1%, TRATAMIENTO ANTI-HONGOS Y DURABILIDAD DE 15 AÑOS COMO MÍNIMO, UNIDAD CON TERMO SELLADO, INCLUYE: TRAZO, CORTES, CONFECCIÓN, HERRAJES, TENSORES, MATERIALES MENORES Y DE CONSUMO, DESPERDICIOS, ELEVACIÓN, HERRAMIENTAS, EQUIPO,  ELEMENTOS DE FIJACION, SELLADO, LIMPIEZA, MANO DE OBRA ESPECIALIZADA, FLETES Y ACARREOS.","M2 ","231.9000",0,"CERO PESOS 00/100 M.N.",0,230271]
["82.06(372)","PISOS                                             ",null,null,null,null,{"$f":"TEXT(SUM(G98:G98), \"$ #,##0.00 ;\")","v":"$ 0.00 "}]
[373022,"PISO DE CONCRETO F'C=150 KG/CM², T.M.A. 3/4\", DE 0.10 M. DE ESPESOR, COLADO EN CUADROS NO MAYORES DE 3.00 ML POR LADO, INCLUYE: TRAZO, NIVELACION, AFINE Y COMPACTACION DEL TERRENO, AGUA, DESPERDICIOS, ACARREOS, REGLEADO, ACABADO INTEGRAL RAYADO CON BROCHA DE PELO (SIN UTILIZACION DE PASTA), CIMBRA EN FRONTERAS, DESCIMBRA, COLADO, CURADO, REMATES, ESCALONADO, MUESTREADO, JUNTAS FRIAS CON VOLTEADOR, HERRAMIENTAS Y MANO DE OBRA.","M2 ","13.5000",0,"CERO PESOS 00/100 M.N.",0,230272]
["82.07(393)","PINTURA                                           ",null,null,null,null,{"$f":"TEXT(SUM(G100:G102), \"$ #,##0.00 ;\")","v":"$ 0.00 "}]
[393318,"PINTURA DE ESMALTE ALQUIDALICO ANTICORROSIVO, ACABADO BRILLANTE, PARA INTERIORES Y EXTERIORES QUE NO DESPRENDA VAPORES TÓXICOS NI OLORES DESAGRADABLES, CON LAS SIGUIENTES CARACTERÍSTICAS ( SÓLIDOS POR PESO 49-60%, SÓLIDOS POR VOLUMEN 40-46%, VISCOSIDAD DE 110-160 UK A 25°C, DENSIDAD 0.9-1.2 TON/M3., BRILLO A 60°C, 90%, TIEMPO DE SECADO AL TACTO, < O = 6 HRS., TIEMPO DE SECADO DURO < O = 24 HRS., ADHERENCIA 100%, RENDIMIENTO EN SUP. LISA 8-10 M2/LT., DILUCIÓN MÁXIMA (AGUARRÁS, THINER), 15 %,  DE TUBO DE FIERRO NEGRO DE 4\" A 6\" DE DIÁMETRO, (POSTES, PASAMANOS, BARANDALES, ESTRUCTURAS, REDES, ETC.), TRABAJO TERMINADO, A DOS MANOS, INCLUYE: MATERIALES MENORES Y DE CONSUMO, PREPARACION DE LA SUPERFICIE, ANDAMIOS, HERRAMIENTAS, LIMPIEZA, MANO DE OBRA Y  EQUIPO DE SEGURIDAD. CUALQUIER ALTURA.","ML ","168.0000",0,"CERO PESOS 00/100 M.N.",0,230273]
[393319,"PINTURA DE ESMALTE ALQUIDALICO ANTICORROSIVO, ACABADO BRILLANTE, PARA INTERIORES Y EXTERIORES QUE NO DESPRENDA VAPORES TÓXICOS NI OLORES DESAGRADABLES, CON LAS SIGUIENTES CARACTERÍSTICAS ( SÓLIDOS POR PESO 49-60%, SÓLIDOS POR VOLUMEN 40-46%, VISCOSIDAD DE 110-160 UK A 25°C, DENSIDAD 0.9-1.2 TON/M3., BRILLO A 60°C, 90%, TIEMPO DE SECADO AL TACTO, < O = 6 HRS., TIEMPO DE SECADO DURO < O = 24 HRS., ADHERENCIA 100%, RENDIMIENTO EN SUP. LISA 8-10 M2/LT., DILUCIÓN MÁXIMA (AGUARRÁS, THINER), 15 %,   EN TUBO DE FIERRO NEGRO DE 3/4\" A 1 1/2\" DE DIÁMETRO, (POSTES, PASAMANOS, BARANDALES, REDES, ETC.),  TRABAJO TERMINADO, A DOS MANOS, INCLUYE: MATERIALES MENORES Y DE CONSUMO, PREPARACION DE LA SUPERFICIE, ANDAMIOS, HERRAMIENTAS, LIMPIEZA, MANO DE OBRA Y  EQUIPO DE SEGURIDAD. CUALQUIER ALTURA.","ML ","49.2000",0,"CERO PESOS 00/100 M.N.",0,230274]
[917337,"PINTURA DE ESMALTE ALQUIDALICO ANTICORROSIVO, ACABADO BRILLANTE, PARA INTERIORES Y EXTERIORES QUE NO DESPRENDA VAPORES TÓXICOS NI OLORES DESAGRADABLES, CON LAS SIGUIENTES CARACTERÍSTICAS ( SÓLIDOS POR PESO 49-60%, SÓLIDOS POR VOLUMEN 40-46%, VISCOSIDAD DE 110-160 UK A 25°C, DENSIDAD 0.9-1.2 TON/M3., BRILLO A 60°C, 90%, TIEMPO DE SECADO AL TACTO, < O = 6 HRS., TIEMPO DE SECADO DURO < O = 24 HRS., ADHERENCIA 100%, RENDIMIENTO EN SUP. LISA 8-10 M2/LT., DILUCIÓN MÁXIMA (AGUARRÁS, THINER), 15 %,  DE TUBO DE FIERRO NEGRO DE 8\" A 10\" DE DIÁMETRO, (POSTES, PASAMANOS, BARANDALES, ESTRUCTURAS, REDES, ETC.), TRABAJO TERMINADO, A DOS MANOS, INCLUYE: MATERIALES MENORES Y DE CONSUMO, PREPARACION DE LA SUPERFICIE, ANDAMIOS, HERRAMIENTAS, LIMPIEZA, MANO DE OBRA Y  EQUIPO DE SEGURIDAD. CUALQUIER ALTURA.","ML ","30.6000",0,"CERO PESOS 00/100 M.N.",0,230275]
["82.08(396)","LIMPIEZA                                          ",null,null,null,null,{"$f":"TEXT(SUM(G104:G104), \"$ #,##0.00 ;\")","v":"$ 0.00 "}]
[396428,"LIMPIEZA GENERAL DE LA OBRA, INCLUYE: ACARREO DEL MATERIAL PRODUCTO DE LA LIMPIEZA , FUERA DE LA OBRA.","M2 ","246.6000",0,"CERO PESOS 00/100 M.N.",0,230276]
["03","RED SANITARIA",null,null,null,null,{"$f":"TEXT((G106), \"$ #,##0.00 ;\")","v":"$ 0.00 "}]
["03.01(565)","INSTALACION HIDRAULICA, SANITARIA Y GAS EN O. EXT.",null,null,null,null,{"$f":"TEXT(SUM(G107:G110), \"$ #,##0.00 ;\")","v":"$ 0.00 "}]
[585014,"SUMINISTRO Y COLOCACION DE TUBO DE P.V.C. SANITARIO (ANGER)  SERIE 25, CAMPANA, DE 6\" (150 MM) DIAM., INCLUYE: CONEXIONES, TRAZO, EXCAVACION,  PASOS POR CIMENTACION, CAMA DE ARENA, RELLENO COMPACTADO, DESPERDICIOS, PRUEBAS Y ACARREO DE MATERIALES AL SITIO DE SU COLOCACION.","ML ","287.0000",0,"CERO PESOS 00/100 M.N.",0,230277]
[932966,"REVISION, REPARACION Y DESAZOLVE DE BAJANTES DE AGUAS PLUVIALES DE PVC DE DIFERENTES DIAMETROS, INCLUYE: PRUEBAS, HERRAMIENTAS, MATERIALES FALTANTES, SELLADO, ANDAMIOS, MANO DE OBRA, DESPERDICIOS Y TODO LO NESESARIO PARA SU PERFECTO FUNCIONAMIENTO.","PZA","10.0000",0,"CERO PESOS 00/100 M.N.",0,230278]
[976147,"FORJADO DE REGISTROS CIRCULARES DE 60 CM. DE DIAMETRO Y 80 CM. DE PROFUNDIDAD CON TABIQUE DE JALCRETO 11-14-28 CM, ASENTADO CON MORTERO, CEMENTO, ARENA DE RIO EN PRO. 1:3, PLANTILLA DE CONCRETO, DE F´C=150KG/CM2, APLANADO INTERIOR CON EL MISMO MORTERO, TERMINADO, PULIDO, VARIABLE HASTA 1 M DE PROFUNDIDAD. INCLUYE: MEDIAS CAÑAS, BROCAL, Y TAPA DE CONCRETO, CONCRETO, TRAZO, CONEXIONES, ALBAÑILERIA, EXCAVACION, RELLENO, HERRAMIENTAS, MANO DE OBRA, Y ACARREOAS DE MATERIALES AL SITIO DE SU COLOCACION.","PZA","2.0000",0,"CERO PESOS 00/100 M.N.",0,230279]
[978226,"REGISTRO SANITARIO O PLUVIAL DE 60 CMS. DE PROFUNDIDAD, 60 X 60 CMS. FORJADO CON TABIQUE DE CEMENTO ASENTADO CON MORTERO CEMENTO-ARENA DE RIO  1;5 PULIDO EN SU INTERIOR CON EL MISMO MORTERO. INCLUYE; EXCAVACION, RELLENO PERIMETRAL, UNA VEZ TERMINADO, MEDIA CAÑA DE FONDO, TAPA DE CONCRETO HECHO EN OBRA, REFORZADA CON VARILLA DEL # 3 MATERIALES MENORES, MANO DE OBRA Y TODO LO NECESARIO PARA SU CORRECTO FUNCIONAMIENTO.","PZA","3.0000",0,"CERO PESOS 00/100 M.N.",0,230280]
["04","RED HIDRAULICA",null,null,null,null,{"$f":"TEXT((G112), \"$ #,##0.00 ;\")","v":"$ 0.00 "}]
["04.01(568)","INSTALACION RED PLUVIAL                           ",null,null,null,null,{"$f":"TEXT(SUM(G113:G113), \"$ #,##0.00 ;\")","v":"$ 0.00 "}]
[928117,"SUMINISTRO, FABRICACION Y COLOCACION DE REJILLA PLUVIAL  A BASE DE PTR 2\" X 2\"  VERDE Y SOLERA DE 3/16\" X  1 1/4\", ANCLADA CON MORTERO CEM-ARE 1:3, INCLUYE CORTES, SOLDADURA Y  ANTICORROSIVO.","KG ","135.0000",0,"CERO PESOS 00/100 M.N.",0,230281]
[null,"RESUMEN DE PARTIDAS"]
["BAS-CON-04891","CONSTRUCCIÓN DE ESTRUCTURA CON LONARIA PARA LA PROTECCIÓN DE RAYOS UV Y REHABILITACIÓN GENERAL EN EL JARDÍN DE NIÑOS FRANCISCO MEDINA ASCENCIO CCT 14EJN0088C, UBICADO EN LA LOCALIDAD TLAQUEPAQUE, EN EL MUNICIPIO DE SAN PEDRO TLAQUEPAQUE, JALISCO.",null,null,null,null,{"$f":"G17","v":"$ 0.00 "}]
["CNJ","CONJUNTO",null,null,null,null,{"$f":"G18","v":"$ 0.00 "}]
["CNJ.01(140)","DEMOLICIONES, DESMONTAJES Y MECANICA DE SUELOS    ",null,null,null,null,{"$f":"G19","v":"$ 0.00 "}]
["CNJ.02(150)","TRABAJOS PRELIMINARES                             ",null,null,null,null,{"$f":"G34","v":"$ 0.00 "}]
["CNJ.03(310)","MUROS, CADENAS, CASTILLOS Y REPIZONES.            ",null,null,null,null,{"$f":"G37","v":"$ 0.00 "}]
["CNJ.04(319)","ENTREPISOS, CUBIERTA Y ACABADOS DE AZOTEA         ",null,null,null,null,{"$f":"G41","v":"$ 0.00 "}]
["CNJ.05(355)","RECUBRIMIENTOS Y ACABADOS                         ",null,null,null,null,{"$f":"G45","v":"$ 0.00 "}]
["CNJ.06(372)","PISOS                                             ",null,null,null,null,{"$f":"G49","v":"$ 0.00 "}]
["CNJ.07(382)","ELEMENTOS COMPLEMENTARIOS DE ALBAÑILERIA          ",null,null,null,null,{"$f":"G53","v":"$ 0.00 "}]
["CNJ.08(393)","PINTURA                                           ",null,null,null,null,{"$f":"G55","v":"$ 0.00 "}]
["CNJ.09(410)","CANCELERIA, HERRERIA, ALUMINIO, VIDRIOS Y CHAPAS  ",null,null,null,null,{"$f":"G58","v":"$ 0.00 "}]
["CNJ.10(564)","INSTALACION HIDRAULICA, SANITARIA Y GAS EN EDIF.  ",null,null,null,null,{"$f":"G60","v":"$ 0.00 "}]
["CNJ.11(590)","MUEBLES DE BAÑO Y COCINA                          ",null,null,null,null,{"$f":"G69","v":"$ 0.00 "}]
[82,"CUBIERTA PARA PATIO CIVICO",null,null,null,null,{"$f":"G73","v":"$ 0.00 "}]
["82.01(140)","DEMOLICIONES, DESMONTAJES Y MECANICA DE SUELOS    ",null,null,null,null,{"$f":"G74","v":"$ 0.00 "}]
["82.02(150)","TRABAJOS PRELIMINARES                             ",null,null,null,null,{"$f":"G76","v":"$ 0.00 "}]
["82.03(160)","CIMENTACION                                       ",null,null,null,null,{"$f":"G80","v":"$ 0.00 "}]
["82.04(200)","ESTRUCTURA                                        ",null,null,null,null,{"$f":"G90","v":"$ 0.00 "}]
["82.05(319)","ENTREPISOS, CUBIERTA Y ACABADOS DE AZOTEA         ",null,null,null,null,{"$f":"G95","v":"$ 0.00 "}]
["82.06(372)","PISOS                                             ",null,null,null,null,{"$f":"G97","v":"$ 0.00 "}]
["82.07(393)","PINTURA                                           ",null,null,null,null,{"$f":"G99","v":"$ 0.00 "}]
["82.08(396)","LIMPIEZA                                          ",null,null,null,null,{"$f":"G103","v":"$ 0.00 "}]
["03","RED SANITARIA",null,null,null,null,{"$f":"G105","v":"$ 0.00 "}]
["03.01(565)","INSTALACION HIDRAULICA, SANITARIA Y GAS EN O. EXT.",null,null,null,null,{"$f":"G106","v":"$ 0.00 "}]
["04","RED HIDRAULICA",null,null,null,null,{"$f":"G111","v":"$ 0.00 "}]
["04.01(568)","INSTALACION RED PLUVIAL                           ",null,null,null,null,{"$f":"G112","v":"$ 0.00 "}]
[]
["IMPORTE CON LETRA (IVA INCLUIDO)",null,null,null,null,"SUBTOTAL M.N.",{"$f":"TEXT(G17,  \"$ #,##0.00 ;\")","v":"$ 0.00 "}]
[{"$f":"UPPER(CONVERTIRNUM(ROUND( G17 * 1.16, 2)))","v":"CERO PESOS 00/100 M.N."},null,null,null,null,"IVA M.N.",{"$f":"TEXT(ROUND( G17 * 0.16, 2),  \"$ #,##0.00 ;\")","v":"$ 0.00 "}]
[null,null,null,null,null,"TOTAL M.N.",{"$f":"TEXT(ROUND( G17 * 1.16, 2),  \"$ #,##0.00 ;\")","v":"$ 0.00 "}]